[Event "FIDE World School-ch G-15 2025"]
[Site "Vrnjacka Banja"]
[Date "2025.03.22"]
[Round "4.1"]
[White "Ferrer Naranjo, Liennys"]
[Black "Japparbekova, Malika"]
[Result "1/2-1/2"]
[Annotator "NA RC"]
[ECO "B93"]
[WhiteElo "1950"]
[BlackElo "1878"]
[PlyCount "90"]
[EventDate "2025.03.19"]
[EventType "swiss"]
[EventCountry "SRB"]
[SourceTitle "playchess.com"]
[Source "ChessBase"]
[SourceQuality "1"]
[TimeControl "5400+30"]

1. e4 {[%emt 0:00:01]} c5 {[%emt 0:00:05]} 2. Nf3 {[%emt 0:00:04]} d6 {[%emt 0:00:05]} 3. d4 {[%emt 0:00:04]} cxd4 {[%emt 0:00:04]} 4. Nxd4 {[%emt 0:00:04]} Nf6 {[%emt 0:00:03]} 5. Nc3 {[%emt 0:00:10]} a6 {[%emt 0:00:05]} 6. f4 {[%emt 0:00:20]} e5 {[%emt 0:00:08]} 7. Nf3 {[%emt 0:00:06]} Nbd7 {[%emt 0:00:05]} 8. a4 {[%emt 0:00:16]} Qc7 {[%emt 0:01:30]} 9. Bd3 {[%emt 0:01:02]} Be7 {[%emt 0:00:47]} 10. O-O {[%emt 0:01:21]} O-O {[%emt 0:00:19]} 11. Kh1 {[%emt 0:01:06]} b6 {[%emt 0:01:42]} 12. Qe1 {[%emt 0:03:00]} Bb7 {[%emt 0:04:04]} 13. Nh4 {[%emt 0:03:28]} Rfe8 {[%emt 0:11:24]} 14. Nf5 {[%emt 0:06:13]} Bf8 {[%emt 0:01:06]} 15. Qg3 {[%emt 0:04:49]} Kh8 {[%emt 0:00:13]} 16. fxe5 {[%emt 0:06:40]} dxe5 {[%emt 0:01:23]} 17. Bg5 {[%emt 0:02:35]} Re6 {[%emt 0:05:05]} 18. Qh3 {[%emt 0:08:36]} Rc8 {[%emt 0:12:48]} 19. Ne3 {[%emt 0:06:37]} Bc5 {[%emt 0:26:51]} 20. Ncd5 {[%emt 0:07:08]} Qc6 {[%emt 0:02:40]} 21. Nxf6 {[%emt 0:04:58]} Nxf6 {[%emt 0:01:04]} 22. Nd5 {[%emt 0:02:03]} Rce8 {[%emt 0:09:05]} 23. Bxf6 {[%emt 0:04:08]} gxf6 {[%emt 0:01:28]} 24. Qf5 {[%emt 0:00:52]} Be7 {[%emt 0:05:30]} 25. Rf3 {[%emt 0:01:45]} Rg8 {[%emt 0:00:16]} 26. Nxe7 {[%emt 0:02:39]} Rxe7 {[%emt 0:00:06]} 27. Qxf6+ {[%emt 0:00:36]} Qxf6 {[%emt 0:00:06]} 28. Rxf6 {[%emt 0:00:03]} Rg6 {[%emt 0:00:07]} 29. Raf1 {[%emt 0:01:24]} Kg7 {[%emt 0:00:38]} 30. Rxg6+ {[%emt 0:00:43]} hxg6 {[%emt 0:00:59]} 31. g4 {[%emt 0:00:28]} f6 {[%emt 0:02:07]} 32. Kg1 {[%emt 0:01:46]} Rd7 {[%emt 0:01:10]} 33. Re1 {[%emt 0:02:04]} Kh6 {[%emt 0:03:40]} 34. Kf2 {[%emt 0:01:45]} Rd4 {[%emt 0:00:41]} 35. b3 {[%emt 0:00:34]} a5 {[%emt 0:02:39]} 36. Ke3 {[%emt 0:02:01]} Kg5 {[%emt 0:00:42]} 37. Rf1 {[%emt 0:01:11]} Rd6 {[%emt 0:01:01]} 38. h3 {[%emt 0:00:34]} Kh4 {[%emt 0:01:32]} 39. Rf3 {[%emt 0:00:38]} Bc6 {[%emt 0:02:28]} 40. Kf2 {[%emt 0:01:14]} Bb7 {[%emt 0:00:40]} 41. Re3 {[%emt 0:04:33]} Bc6 {[%emt 0:00:12]} 42. Ke2 {[%emt 0:01:53]} Bb7 {[%emt 0:01:00]} 43. c3 {[%emt 0:02:11]} Bc6 {[%emt 0:00:24]} 44. Rf3 {[%emt 0:02:27]} Bb7 {[%emt 0:01:08]} 45. Ke3 {[%emt 0:01:37]} Bc6 {[%emt 0:00:17]} 1/2-1/2

[Event "FIDE World School-ch G-15 2025"]
[Site "Vrnjacka Banja"]
[Date "2025.03.22"]
[Round "4.2"]
[White "Imomkuzieva, Nilufarkhon"]
[Black "Preobrazhenskaya, Diana"]
[Result "1-0"]
[Annotator "NA RC"]
[ECO "B90"]
[WhiteElo "1983"]
[BlackElo "2032"]
[PlyCount "113"]
[EventDate "2025.03.19"]
[EventType "swiss"]
[EventCountry "SRB"]
[SourceTitle "playchess.com"]
[Source "ChessBase"]
[SourceQuality "1"]
[TimeControl "5400+30"]

1. e4 {[%emt 0:00:02]} c5 {[%emt 0:00:03]} 2. Nf3 {[%emt 0:00:03]} d6 {[%emt 0:00:06]} 3. d4 {[%emt 0:00:02]} cxd4 {[%emt 0:00:07]} 4. Nxd4 {[%emt 0:00:02]} Nf6 {[%emt 0:00:08]} 5. Nc3 {[%emt 0:00:03]} a6 {[%emt 0:00:06]} 6. h3 {[%emt 0:00:02]} e5 {[%emt 0:00:06]} 7. Nde2 {[%emt 0:00:03]} h5 {[%emt 0:00:08]} 8. g3 {[%emt 0:00:03]} Be7 {[%emt 0:00:08]} 9. Bg2 {[%emt 0:00:06]} b5 {[%emt 0:00:06]} 10. Nd5 {[%emt 0:00:05]} Nxd5 {[%emt 0:00:26]} 11. Qxd5 {[%emt 0:00:04]} Ra7 {[%emt 0:00:09]} 12. Be3 {[%emt 0:00:12]} Rb7 {[%emt 0:00:20]} 13. O-O-O {[%emt 0:02:14]} Nd7 {[%emt 0:01:18]} 14. f4 {[%emt 0:03:29]} Nb6 {[%emt 0:08:10]} 15. Qc6+ {[%emt 0:07:49]} Qd7 {[%emt 0:00:36]} 16. Qxd7+ {[%emt 0:00:06]} Bxd7 {[%emt 0:00:27]} 17. Nc3 {[%emt 0:01:31]} Nc4 {[%emt 0:02:23]} 18. Bf2 {[%emt 0:00:35]} h4 {[%emt 0:03:07]} 19. Nd5 {[%emt 0:01:27]} hxg3 {[%emt 0:02:02]} 20. Bxg3 {[%emt 0:00:08]} Bh4 {[%emt 0:02:49]} 21. Bh2 {[%emt 0:06:56]} f6 {[%emt 0:22:15]} 22. Bg1 {[%emt 0:08:52]} a5 {[%emt 0:07:32]} 23. b3 {[%emt 0:01:14]} Na3 {[%emt 0:00:19]} 24. Kb2 {[%emt 0:00:05]} b4 {[%emt 0:00:26]} 25. Bb6 {[%emt 0:01:01]} a4 {[%emt 0:16:52]} 26. c4 {[%emt 0:01:16]} Bc6 {[%emt 0:08:58]} 27. Be3 {[%emt 0:00:43]} Kf7 {[%emt 0:03:00]} 28. f5 {[%emt 0:01:35]} Ra8 {[%emt 0:02:14]} 29. Bf3 {[%emt 0:03:05]} Rh8 {[%emt 0:01:53]} 30. Rd3 {[%emt 0:03:34]} Bg5 {[%emt 0:02:39]} 31. Bxg5 {[%emt 0:02:30]} fxg5 {[%emt 0:00:14]} 32. Nxb4 {[%emt 0:01:20]} Nxc4+ {[%emt 0:04:47]} 33. bxc4 {[%emt 0:00:24]} Rxb4+ {[%emt 0:00:04]} 34. Kc3 {[%emt 0:00:02]} Rhb8 {[%emt 0:01:40]} 35. Rxd6 {[%emt 0:00:06]} Rb2 {[%emt 0:02:30]} 36. Rxc6 {[%emt 0:02:47]} Rxa2 {[%emt 0:00:04]} 37. Bh5+ {[%emt 0:00:01]} Ke7 {[%emt 0:03:53]} 38. c5 {[%emt 0:00:26]} Rb3+ {[%emt 0:00:52]} 39. Kc4 {[%emt 0:00:04]} Rc2+ {[%emt 0:01:14]} 40. Kd5 {[%emt 0:00:35]} a3 {[%emt 0:00:34]} 41. Rd1 {[%emt 0:02:55]} Rb8 {[%emt 0:01:25]} 42. Rc7+ {[%emt 0:11:01]} Kf8 {[%emt 0:00:06]} 43. Ra1 {[%emt 0:00:19]} a2 {[%emt 0:01:24]} 44. Kc6 {[%emt 0:01:34]} g4 {[%emt 0:02:09]} 45. hxg4 {[%emt 0:00:16]} Rb1 {[%emt 0:00:40]} 46. Kd6 {[%emt 0:06:11]} g6 {[%emt 0:01:17]} 47. Bxg6 {[%emt 0:02:44]} Rxa1 {[%emt 0:00:42]} 48. f6 {[%emt 0:00:02]} Rd1+ {[%emt 0:00:45]} 49. Ke6 {[%emt 0:00:02]} Rd8 {[%emt 0:01:12]} 50. Rf7+ {[%emt 0:00:03]} Kg8 {[%emt 0:00:16]} 51. Rg7+ {[%emt 0:00:03]} Kf8 {[%emt 0:00:20]} 52. Rh7 {[%emt 0:00:03]} Kg8 {[%emt 0:00:54]} 53. f7+ {[%emt 0:00:02]} Kf8 {[%emt 0:00:04]} 54. Rh8+ {[%emt 0:00:03]} Kg7 {[%emt 0:00:06]} 55. Rxd8 {[%emt 0:00:03]} Rf2 {[%emt 0:00:41]} 56. Bf5 {[%emt 0:00:02]} Rxf5 {[%emt 0:01:13]} 57. gxf5 {[%emt 0:00:05]} 1-0

[Event "FIDE World School-ch G-15 2025"]
[Site "Vrnjacka Banja"]
[Date "2025.03.22"]
[Round "4.3"]
[White "Torres Ccahuay, Dayana Nievevska"]
[Black "Assylkhan, Asiya"]
[Result "1/2-1/2"]
[Annotator "TA"]
[ECO "B02"]
[WhiteElo "1840"]
[BlackElo "1969"]
[PlyCount "206"]
[EventDate "2025.03.19"]
[EventType "swiss"]
[EventCountry "SRB"]
[SourceTitle "playchess.com"]
[Source "ChessBase"]
[SourceQuality "1"]
[TimeControl "5400+30"]

{[%evp 9,206,-53,-53,-44,-44,-77,-78,-92,-78,-104,-78,-70,-59,-200,-203,-201,-206,-214,-215,-217,-209,-377,-289,-350,-350,-352,-200,-200,-152,-152,-152,-185,-181,-185,-186,-197,-195,-195,-186,-196,-181,-192,-174,-185,-159,-152,-163,-162,-152,-157,-152,-166,-166,-185,-164,-167,-141,-171,-127,-141,-147,-138,-121,-195,-181,-182,-185,-184,-106,-122,-80,-80,-52,-95,-83,-138,-138,-135,-133,-126,-80,-135,-133,-135,-80,-124,-80,-80,-81,-88,-80,-80,-80,-81,-59,-89,-25,-44,-5,-8,-5,-8,0,-8,-8,-8,-8,-8,-8,-16,-5,-5,0,-17,0,-8,0,-17,0,-5,-5,-5,0,0,0,-5,-5,-5,0,0,0,-5,-5,-5,-5,-5,0,-8,-8,-20,0,-5,0,-5,-5,-5,-5,-5,-5,-5,0,-15,0,-5,0,-5,0,0,0,0,0,-5,0,0,0,-5,0,0,0,-5,0,-5,0,-5,0,-5,0,-5,0,-5,0,-5,0,-5,0,-5,-5,-5,0,-5,0,-5,-5,-5,0,0,0,0,0]} 1. e4 {[%emt 0:02:22]} Nf6 {[%emt 0:00:08]} 2. Bc4 {[%emt 0:00:16]} Nxe4 {[%emt 0:00:16]} 3. Bxf7+ {[%emt 0:00:24]} Kxf7 {[%emt 0:00:05]} 4. Qh5+ {[%emt 0:00:04]} Kg8 {[%emt 0:00:05]} 5. Qd5+ {[%emt 0:00:05]} e6 {[%emt 0:00:05]} 6. Qxe4 {[%emt 0:00:05] B02: Alekhine's Defence: Chase Variation and lines with early Nc3.} d5 {[%emt 0:00:03]} 7. Qe2 {[%emt 0:01:13]} Nc6 {[%emt 0:00:07] Wards off d4} 8. Nf3 {[%emt 0:00:30] [#] Black is better. Dodges Nd4} e5 $1 {[%emt 0:01:12]} 9. d3 {[%emt 0:04:52][%cal Oh2h3]} Bg4 {[%emt 0:00:12]} 10. h3 $146 {[%emt 0:02:08]} (10. c3 h6 11. O-O Qf6 12. Nbd2 Re8 13. h3 Bh5 14. Re1 Kh7 15. g4 Bg6 16. Nf1 {1-0 Prokopets,V (1582)-Pech,J (1625) LSS No Engine Cup 188 Preliminary 0 2019}) 10... Nd4 {[%emt 0:00:34]} 11. Qd1 {[%emt 0:00:30]} ({Only move:} 11. Qxe5 $15 Nxf3+ (11... Nxc2+ 12. Kd1 $16) 12. gxf3) 11... Nxf3+ $19 {[%emt 0:02:30]} 12. gxf3 {[%emt 0:00:09] [#]} Bh5 {[%emt 0:00:05]} 13. Rg1 {[%emt 0:09:51]} Qf6 {[%emt 0:00:29]} 14. Bg5 {[%emt 0:06:53]} Qf5 {[%emt 0:06:23]} (14... Qxf3 15. Qxf3 Bxf3 16. Rg3) 15. Qd2 $2 {[%emt 0:11:12]} (15. Nd2) 15... Bxf3 {[%emt 0:00:21][%cal Oh7h6]} 16. Rg3 {[%emt 0:05:44]} Re8 {[%emt 0:03:01][%cal Oh7h6] White is weak on the light squares} 17. Kf1 {[%emt 0:06:14]} Bd6 {[%emt 0:12:52]} (17... h6 $142 18. Qe3 Bh1 (18... Bh5 19. Bxh6 e4 20. Qg5 $19) 19. Bxh6 Qh5) 18. Bh6 {[%emt 0:00:11]} Re7 {[%emt 0:00:12]} 19. Qg5 {[%emt 0:01:09]} Qxg5 {[%emt 0:00:17]} 20. Bxg5 {[%emt 0:01:29]} Rf7 {[%emt 0:00:05]} 21. Nd2 {[%emt 0:03:59]} Bh5 {[%emt 0:01:26] A strong pair of Bishops.} 22. Rg2 {[%emt 0:03:25]} h6 {[%emt 0:01:04]} 23. Bh4 {[%emt 0:00:11]} Kh7 {[%emt 0:00:06][%cal Oe5e4]} 24. Kg1 {[%emt 0:01:52]} Rhf8 {[%emt 0:10:22]} 25. Re1 {[%emt 0:01:38]} e4 {[%emt 0:02:42]} 26. Bg3 {[%emt 0:03:05]} Bxg3 {[%emt 0:00:45]} 27. fxg3 {[%emt 0:01:01]} exd3 {[%emt 0:00:13]} 28. cxd3 {[%emt 0:00:25]} Bg6 {[%emt 0:00:06]} 29. d4 {[%emt 0:02:20]} Bd3 {[%emt 0:00:20]} 30. Re5 {[%emt 0:05:43]} c6 {[%emt 0:00:23]} 31. g4 {[%emt 0:00:56]} g5 {[%emt 0:21:23]} 32. Rg3 {[%emt 0:04:14]} Bg6 {[%emt 0:02:08]} 33. Rge3 {[%emt 0:00:31]} Kg7 {[%emt 0:00:12]} 34. Re7 {[%emt 0:03:12]} Rxe7 {[%emt 0:00:43]} 35. Rxe7+ {[%emt 0:00:05]} Rf7 {[%emt 0:00:06]} 36. Rxf7+ {[%emt 0:03:30]} (36. Re3 $17) 36... Kxf7 $17 {[%emt 0:00:48][%mdl 4096] Endgame KB-KN. Black is a pawn up.} ({Don't do} 36... Bxf7 37. b4 $17) 37. Nf3 {[%emt 0:00:43]} Ke6 {[%emt 0:00:16]} 38. b4 {[%emt 0:01:20]} Be4 {[%emt 0:00:49]} (38... Bb1 $19 39. a4 b6) 39. Ne5 {[%emt 0:00:38]} Kf6 {[%emt 0:02:48]} 40. Kf2 {[%emt 0:00:54]} Bg6 {[%emt 0:00:18]} 41. a3 {[%emt 0:03:51]} Be8 {[%emt 0:00:15]} 42. Ke3 {[%emt 0:01:06]} (42. Kg3 $142) 42... b6 {[%emt 0:01:55][%cal Oc6c5]} 43. Nd3 {[%emt 0:02:20]} Ke6 {[%emt 0:00:47]} 44. Kf2 {[%emt 0:00:51]} Ke7 {[%emt 0:02:10]} (44... Bf7 $142 45. Ke3 Bg8) 45. Ne5 {[%emt 0:01:14]} (45. Kg3 $142) 45... Kd6 {[%emt 0:00:58]} 46. Nd3 {[%emt 0:00:39]} Ke6 {[%emt 0:02:10]} (46... Bf7 $142 47. Ke2 Be6) 47. Ke3 {[%emt 0:01:21]} Kf6 {[%emt 0:00:06]} 48. Kf2 {[%emt 0:00:37]} h5 {[%emt 0:00:46]} 49. Kf3 {[%emt 0:03:34]} hxg4+ {[%emt 0:02:03]} 50. hxg4 {[%emt 0:00:03]} Ke7 {[%emt 0:00:36]} 51. Ke3 {[%emt 0:00:54]} Kd6 {[%emt 0:01:06]} 52. Kf3 {[%emt 0:01:13]} Ke6 {[%emt 0:01:37]} (52... Bf7 $17) 53. Ke3 {[%emt 0:00:15]} a6 {[%emt 0:00:21]} 54. Kf2 {[%emt 0:00:41] The position is equal.} Ke7 {[%emt 0:00:51]} 55. Ke3 {[%emt 0:00:27]} Ke6 {[%emt 0:01:25]} 56. Kf2 {[%emt 0:00:12]} Kd6 {[%emt 0:00:05]} 57. Ke3 {[%emt 0:00:25]} Bd7 {[%emt 0:00:13]} 58. Kf3 {[%emt 0:01:01]} Bc8 {[%emt 0:00:29]} 59. Kg3 {[%emt 0:01:02]} Ke6 {[%emt 0:00:39]} 60. Kf3 {[%emt 0:00:10]} Kd6 {[%emt 0:02:37]} 61. Kg3 {[%emt 0:00:31]} Ke7 {[%emt 0:02:33]} 62. Kf3 {[%emt 0:00:27]} Kd6 {[%emt 0:01:18]} 63. Kg3 {[%emt 0:00:06]} Ke6 {[%emt 0:00:04]} 64. Kf3 {[%emt 0:00:19]} Bd7 {[%emt 0:00:04]} 65. Kg3 {[%emt 0:01:37]} Be8 {[%emt 0:00:07]} 66. Kf2 {[%emt 0:00:17]} Kd6 {[%emt 0:01:17]} 67. Ke3 {[%emt 0:00:24]} Ke7 {[%emt 0:01:56]} 68. Kf2 {[%emt 0:00:19]} Kf7 {[%emt 0:00:38]} 69. Kg3 {[%emt 0:00:27]} Kf6 {[%emt 0:00:34]} 70. Kf2 {[%emt 0:00:28]} Ke6 {[%emt 0:00:10]} 71. Ke3 {[%emt 0:00:22]} Kd6 {[%emt 0:00:05]} 72. Kf2 {[%emt 0:00:29]} Bd7 {[%emt 0:00:18]} 73. Kg3 {[%emt 0:00:24]} Bc8 {[%emt 0:00:28]} 74. Kf3 {[%emt 0:00:26]} Bd7 {[%emt 0:00:09]} 75. Kg3 $1 {[%emt 0:00:05]} Be8 {[%emt 0:00:04]} 76. Kf2 {[%emt 0:00:10]} Bf7 {[%emt 0:00:26]} 77. Kg3 {[%emt 0:00:24]} Bg8 {[%emt 0:00:14]} 78. Kf2 {[%emt 0:00:29]} Be6 {[%emt 0:00:18]} 79. Kf3 {[%emt 0:00:33]} Bc8 {[%emt 0:00:32]} 80. Kg3 {[%emt 0:00:26]} Be6 {[%emt 0:00:06]} 81. Kf3 {[%emt 0:00:11]} Bd7 {[%emt 0:00:05]} 82. Kg3 $1 {[%emt 0:00:31]} Ke7 {[%emt 0:00:07]} 83. Kf3 {[%emt 0:00:15]} Be8 {[%emt 0:00:09]} 84. Kf2 {[%emt 0:00:25]} Kd6 {[%emt 0:00:08]} 85. Kg3 {[%emt 0:00:26]} Ke7 {[%emt 0:00:11]} 86. Kf2 {[%emt 0:00:07]} Ke6 {[%emt 0:00:05]} 87. Ke3 {[%emt 0:00:21]} Bg6 {[%emt 0:00:14] ...Bxd3 is the strong threat.} 88. Ne5 {[%emt 0:00:19]} Be8 {[%emt 0:00:06]} 89. Nd3 {[%emt 0:00:08]} Kd6 {[%emt 0:00:05]} 90. Kf2 {[%emt 0:00:07]} Bd7 {[%emt 0:00:19]} 91. Kg3 {[%emt 0:00:37]} Be8 {[%emt 0:00:09]} 92. Kf2 {[%emt 0:00:06]} Ke6 {[%emt 0:00:56]} 93. Kg3 {[%emt 0:00:16]} Kf6 {[%emt 0:00:10]} 94. Kf2 {[%emt 0:00:21]} Ke6 {[%emt 0:00:25]} 95. Kg3 {[%emt 0:08:08]} Kd6 {[%emt 0:00:30]} 96. Kf2 {[%emt 0:00:00]} Ke6 {[%emt 0:00:12]} 97. Kg3 {[%emt 0:00:00]} Bd7 {[%emt 0:00:43]} 98. Kf2 {[%emt 0:00:00]} Kd6 {[%emt 0:00:14]} 99. Kf3 {[%emt 0:00:00]} Be8 {[%emt 0:00:07]} 100. Ke3 {[%emt 0:00:00]} Bf7 {[%emt 0:00:11]} 101. Kf2 {[%emt 0:00:00]} Ke6 {[%emt 0:00:06]} 102. Kg3 {[%emt 0:00:00]} Bg8 {[%emt 0:00:32]} 103. Kf2 {[%emt 0:00:00]} Bf7 {[%emt 0:01:27] And White is the lucky defender.   Weighted Error Value: White=0.21 (precise) /Black=0.20 (precise)   Mistake:       	White=5     	Black=5      Inaccurate:     	White=3     	Black=4      OK:         	White=45    	Black=26     Best:        	White=3     	Black=2      Strong:       	White=2     	---        Brilliant:      	---       	Black=1} 1/2-1/2

[Event "FIDE World School-ch G-15 2025"]
[Site "Vrnjacka Banja"]
[Date "2025.03.22"]
[Round "4.4"]
[White "Aldea, Maria-Antonia"]
[Black "Biro, Beata"]
[Result "1-0"]
[Annotator "TA"]
[ECO "E08"]
[WhiteElo "1954"]
[BlackElo "1877"]
[PlyCount "127"]
[EventDate "2025.03.19"]
[EventType "swiss"]
[EventCountry "SRB"]
[SourceTitle "playchess.com"]
[Source "ChessBase"]
[SourceQuality "1"]
[TimeControl "5400+30"]

{[%evp 15,127,18,30,13,20,-25,0,-8,37,-54,-47,-45,0,0,0,0,0,0,2,11,22,8,23,0,170,0,0,0,0,0,120,129,141,69,86,35,35,35,62,50,134,111,137,86,109,41,100,112,115,118,221,163,170,120,125,83,177,173,258,251,245,250,272,230,239,234,220,207,268,268,281,277,335,298,330,340,347,329,337,335,341,341,368,337,506,518,522,478,510,504,546,477,549,462,837,916,1017,1004,893,817,29966,29967,29964,29965,29969,29971,29971,29972,29973,29974,29973,29974,29938,5118]} 1. c4 {[%emt 0:01:11]} c6 {[%emt 0:00:16]} 2. Nf3 {[%emt 0:00:16]} d5 {[%emt 0:00:27]} 3. g3 {[%emt 0:00:16]} Nf6 {[%emt 0:00:42]} 4. Bg2 {[%emt 0:00:14]} e6 {[%emt 0:00:57]} 5. Qc2 {[%emt 0:01:28]} Be7 {[%emt 0:01:27]} 6. O-O {[%emt 0:00:22]} O-O {[%emt 0:01:37]} 7. d4 {[%emt 0:00:28]} Nbd7 {[%emt 0:01:50]} 8. Rd1 {[%emt 0:03:55]} Ne4 {[%emt 0:03:49]} 9. Nfd2 {[%emt 0:04:06] E08: Closed Catalan: Main Line: 7 Qc2.} f5 {[%emt 0:03:02]} 10. f3 {[%emt 0:00:27]} Nef6 {[%emt 0:01:37]} 11. Nc3 {[%emt 0:04:42] The position is equal.} Qe8 $146 {[%emt 0:05:52]} (11... b6 12. b3 Bb7 13. Bb2 Rc8 14. Rac1 c5 15. e3 Qe8 16. Ne2 Bd6 17. Qd3 Qf7 {1-0 Srebrnic,V (2201)-Elez,S (2136) Senta op-A 14th 2010 (7)}) 12. e4 {[%emt 0:06:02]} (12. cxd5 $14 Nxd5 13. Nc4) 12... fxe4 $15 {[%emt 0:02:09]} 13. fxe4 {[%emt 0:00:04]} Ng4 {[%emt 0:01:46]} 14. Nf3 {[%emt 0:00:30][%cal Re4d5]} e5 {[%emt 0:05:34]} 15. cxd5 {[%emt 0:11:59]} exd4 {[%emt 0:01:49]} 16. Nxd4 {[%emt 0:01:46]} Bc5 {[%emt 0:04:01]} 17. dxc6 {[%emt 0:08:12]} bxc6 {[%emt 0:01:32] Threatens to win with ...Rf2.} 18. Na4 {[%emt 0:01:57]} Qh5 {[%emt 0:04:20][%csl Gg4][%cal Rh5h2]} 19. h4 {[%emt 0:02:49] and Nxc5 would now be decisive} (19. h3 $5 Bxd4+ 20. Rxd4 $16) 19... Nf2 $2 {[%emt 0:12:28]} (19... Bxd4+ $11 20. Rxd4 Rb8) 20. Rd2 $2 {[%emt 0:06:33]} ({White must play} 20. Nxc5 $1 $18 Qxd1+ 21. Qxd1 Nxd1 22. Nd3 (22. Nce6 Rf2 $18)) 20... Bxd4 $11 {[%emt 0:00:57]} 21. Qc4+ $1 {[%emt 0:05:24]} Kh8 $1 {[%emt 0:00:42]} 22. Qxd4 {[%emt 0:00:13]} Ng4 {[%emt 0:01:51] [#]} (22... Nh3+ $1 $11 23. Bxh3 Ne5) 23. b3 $1 $36 {[%emt 0:04:57][%mdl 2048] Black is under strong pressure.} Nge5 {[%emt 0:06:26] [#]} 24. Bb2 {[%emt 0:11:12]} (24. Rf2 $1 $16 {[%cal Rf2f8]}) 24... Qg4 $1 $14 {[%emt 0:01:30]} 25. Rf2 {[%emt 0:03:19]} (25. Qd6 $16 Qxg3 26. Bxe5 Qxe5 27. Rc1) 25... Ba6 {[%emt 0:03:30]} 26. Ba3 {[%emt 0:04:58] A strong pair of Bishops.} Rxf2 {[%emt 0:03:39]} 27. Qxf2 {[%emt 0:00:10]} Bd3 {[%emt 0:01:48]} ({Black should try} 27... c5 $1 $14 28. Bxc5 (28. Nxc5 $2 Rf8 $19) 28... Nd3) 28. Re1 {[%emt 0:03:27]} h6 {[%emt 0:04:55]} 29. Nc3 {[%emt 0:03:20]} (29. Qf4 $142) 29... Ba6 {[%emt 0:04:41]} 30. Re3 {[%emt 0:02:22]} ({Better is} 30. Qf4 $16) 30... Qg6 {[%emt 0:03:52]} (30... Nf6 $14) 31. Bh3 $16 {[%emt 0:03:03]} Nf6 {[%emt 0:01:58]} 32. Qf5 {[%emt 0:02:20] Against Neg4} Re8 {[%emt 0:03:20]} (32... Qf7 $16) 33. Qxg6 {[%emt 0:02:00]} Nxg6 {[%emt 0:00:04]} 34. Bc5 {[%emt 0:00:16]} (34. e5 $18) 34... Ne5 {[%emt 0:03:43]} 35. Bxa7 {[%emt 0:01:04]} Kg8 {[%emt 0:00:37]} (35... Rd8 $16) 36. Bd4 $18 {[%emt 0:01:13]} Kf7 {[%emt 0:02:13]} (36... Nfg4 $142) 37. Bxe5 {[%emt 0:01:33]} Rxe5 {[%emt 0:00:03]} 38. Kf2 {[%emt 0:00:32]} c5 {[%emt 0:01:15]} 39. Ke1 {[%emt 0:00:40]} Ke7 {[%emt 0:01:21]} 40. Kd2 {[%emt 0:00:31]} Kd6 {[%emt 0:00:17]} 41. Bg2 {[%emt 0:00:32]} h5 {[%emt 0:01:24]} 42. Re1 {[%emt 0:00:32]} Bb7 {[%emt 0:01:51]} 43. a4 {[%emt 0:00:32]} Kc7 {[%emt 0:01:02] [#]} 44. Nd5+ $1 {[%emt 0:00:22]} Kd6 {[%emt 0:00:58]} (44... Kb8 45. Nxf6) 45. Nxf6 {[%emt 0:00:25]} gxf6 {[%emt 0:00:02][%mdl 4096] Endgame KRB-KRB. White is two pawns up.} 46. Bf3 {[%emt 0:00:42]} Kc7 {[%emt 0:01:02]} 47. Re3 {[%emt 0:00:28]} Kb6 {[%emt 0:00:41]} 48. Rd3 {[%emt 0:00:28]} Ka5 {[%emt 0:00:18]} 49. Rd6 {[%emt 0:00:25]} f5 {[%emt 0:00:43]} (49... Bxe4 {was necessary.} 50. Bxe4 (50. Rxf6 Bxf3 51. Rxf3 Kb4 $16) 50... Rxe4 51. Rxf6 Rb4) 50. Bxh5 {[%emt 0:00:20]} f4 {[%emt 0:01:42]} 51. Bf3 {[%emt 0:00:25]} ({Inferior is} 51. gxf4 Rxh5 52. e5 Rxh4 $11) 51... fxg3 {[%emt 0:00:04]} 52. Rg6 {[%emt 0:00:45]} Bxe4 {[%emt 0:00:14]} 53. Rxg3 {[%emt 0:00:20]} Bh7 {[%emt 0:01:33]} 54. Rg7 {[%emt 0:00:37] Dodges Re7} Bf5 {[%emt 0:00:02]} (54... Be4 $142 55. Bxe4 Rxe4 56. Ra7+ Kb6) 55. Rg5 {[%emt 0:00:23]} Kb4 {[%emt 0:01:10]} 56. Bg4 {[%emt 0:00:31]} Rd5+ {[%emt 0:00:12]} 57. Kc1 {[%emt 0:00:16]} Be4 {[%emt 0:00:07]} 58. Rxd5 {[%emt 0:00:19] White mates.} Bxd5 {[%emt 0:00:01] KB-KB. White is two pawns up.} 59. Bd1 {[%emt 0:00:18]} Be4 {[%emt 0:00:56]} 60. Kd2 {[%emt 0:00:49]} c4 {[%emt 0:00:46]} 61. bxc4 {[%emt 0:00:51]} Kxc4 {[%emt 0:00:07]} 62. Ke3 {[%emt 0:00:22]} Bg6 {[%emt 0:00:46]} 63. h5 {[%emt 0:00:27]} Bh7 {[%emt 0:00:06]} 64. Kf4 {[%emt 0:00:35] Weighted Error Value: White=0.21 (precise) /Black=0.43  Loses game:     	---       	Black=1      Missed win:     	White=1     	---        Mistake:       	White=6     	Black=8      Inaccurate:     	White=2     	Black=3      OK:         	White=21    	Black=12     Best:        	White=2     	Black=3      Strong:       	White=1     	Black=2} (64. h6 $142 Kb4 65. Kf4 Ka5 66. Kg5 Bd3 67. Bg4 Bh7 68. Bf5 Bg8 69. Kf6 (69. h7 Bxh7 70. Bxh7 Kxa4 $11) 69... Kxa4 70. Kg7) 1-0

[Event "FIDE World School-ch G-15 2025"]
[Site "Vrnjacka Banja"]
[Date "2025.03.22"]
[Round "4.5"]
[White "Leisle, Darya"]
[Black "Aadya Gupta"]
[Result "1/2-1/2"]
[Annotator "NA RC"]
[ECO "C54"]
[WhiteElo "1750"]
[BlackElo "1928"]
[PlyCount "56"]
[EventDate "2025.03.19"]
[EventType "swiss"]
[EventCountry "SRB"]
[SourceTitle "playchess.com"]
[Source "ChessBase"]
[SourceQuality "1"]
[TimeControl "5400+30"]

1. e4 {[%emt 0:00:02]} e5 {[%emt 0:03:37]} 2. Nf3 {[%emt 0:00:07]} Nc6 {[%emt 0:00:02]} 3. Bc4 {[%emt 0:00:07]} Bc5 {[%emt 0:00:01]} 4. c3 {[%emt 0:00:08]} Nf6 {[%emt 0:00:04]} 5. d4 {[%emt 0:00:07]} exd4 {[%emt 0:00:05]} 6. e5 {[%emt 0:00:05]} d5 {[%emt 0:00:03]} 7. Bb5 {[%emt 0:00:05]} Ne4 {[%emt 0:00:05]} 8. cxd4 {[%emt 0:00:06]} Bb6 {[%emt 0:00:02]} 9. Nc3 {[%emt 0:00:10]} Bg4 {[%emt 0:00:33]} 10. Be3 {[%emt 0:00:16]} O-O {[%emt 0:02:04]} 11. h3 {[%emt 0:00:25]} Bh5 {[%emt 0:03:37]} 12. Qc2 {[%emt 0:00:37]} Bg6 {[%emt 0:01:58]} 13. Qb3 {[%emt 0:00:43]} Ne7 {[%emt 0:01:16]} 14. O-O {[%emt 0:01:57]} Bh5 {[%emt 0:03:35]} 15. Be2 {[%emt 0:21:12]} c6 {[%emt 0:00:32]} 16. Qc2 {[%emt 0:01:23]} Nxc3 {[%emt 0:08:20]} 17. bxc3 {[%emt 0:00:49]} Qc8 {[%emt 0:05:35]} 18. Nh4 {[%emt 0:18:30]} Bxe2 {[%emt 0:00:48]} 19. Qxe2 {[%emt 0:00:03]} Nf5 {[%emt 0:03:15]} 20. Nxf5 {[%emt 0:02:28]} Qxf5 {[%emt 0:00:03]} 21. f4 {[%emt 0:01:21]} f6 {[%emt 0:06:13]} 22. Rae1 {[%emt 0:02:26]} Rae8 {[%emt 0:02:01]} 23. Kh1 {[%emt 0:06:40]} Ba5 {[%emt 0:02:41]} 24. Bd2 {[%emt 0:03:13]} Qc8 {[%emt 0:01:46]} 25. Qd3 {[%emt 0:11:09]} f5 {[%emt 0:00:37]} 26. Bc1 {[%emt 0:01:05]} Qe6 {[%emt 0:02:57]} 27. Rf3 {[%emt 0:07:06]} Rf7 {[%emt 0:02:36]} 28. Rg1 {[%emt 0:00:36]} g6 {[%emt 0:01:40]} 1/2-1/2